{"text_format":"3","workbook":"xlsx","n_sheets":1,"sheets":["Requisição de Livros"],"not_rendered":{"defined_names":4},"read":"whole","date_system":"1900"}

{"sheet":"Requisição de Livros","index":0,"n_rows":9,"n_cols":8,"rows_kept":9,"merged":[[0,1,0,4],[0,5,0,6]]}
[null,"Folha de Requisição de Livros",{"$nulls":3},"DIAS RESTANTES: ",null,10]
["Entrega em Atraso","ESTUDANTE","E-MAIL DE CONTACTO","TELEFONE DE CONTACTO","TÍTULO DO LIVRO","DATA DA REQUISIÇÃO","DATA DA DEVOLUÇÃO","DIAS"]
[{"$f":"IFERROR(((Livros[[#This Row],[DATA DA REQUISIÇÃO]]+DiasDeTolerância)<TODAY())*(LEN(Livros[[#This Row],[DATA DA DEVOLUÇÃO]])=0)*(LEN(Livros[[#This Row],[DATA DA REQUISIÇÃO]])>0),0)","v":0},"Teresa Andrade","alguem@example.com",234678900,"Uma Casa na Imensa Pradaria",{"$f":"DATE(YEAR(TODAY()),1,14)","v":"2018-01-14"},{"$f":"DATE(YEAR(TODAY()),1,21)","v":"2018-01-21"},{"$f":"IFERROR(IF(Livros[[#This Row],[DATA DA DEVOLUÇÃO]]=\"\",IF(Livros[[#This Row],[DATA DA REQUISIÇÃO]]<>\"\", TODAY()-Livros[[#This Row],[DATA DA REQUISIÇÃO]],\"\"),Livros[[#This Row],[DATA DA DEVOLUÇÃO]]-Livros[[#This Row],[DATA DA REQUISIÇÃO]]), \"\")","v":7}]
[{"$f":"IFERROR(((Livros[[#This Row],[DATA DA REQUISIÇÃO]]+DiasDeTolerância)<TODAY())*(LEN(Livros[[#This Row],[DATA DA DEVOLUÇÃO]])=0)*(LEN(Livros[[#This Row],[DATA DA REQUISIÇÃO]])>0),0)","v":0},"Guilherme Sarmento","alguem@example.com",234678901,"A Teia de Carlota",{"$f":"DATE(YEAR(TODAY()),2,15)","v":"2018-02-15"},{"$f":"DATE(YEAR(TODAY()),2,18)","v":"2018-02-18"},{"$f":"IFERROR(IF(Livros[[#This Row],[DATA DA DEVOLUÇÃO]]=\"\",IF(Livros[[#This Row],[DATA DA REQUISIÇÃO]]<>\"\", TODAY()-Livros[[#This Row],[DATA DA REQUISIÇÃO]],\"\"),Livros[[#This Row],[DATA DA DEVOLUÇÃO]]-Livros[[#This Row],[DATA DA REQUISIÇÃO]]), \"\")","v":3}]
[{"$f":"IFERROR(((Livros[[#This Row],[DATA DA REQUISIÇÃO]]+DiasDeTolerância)<TODAY())*(LEN(Livros[[#This Row],[DATA DA DEVOLUÇÃO]])=0)*(LEN(Livros[[#This Row],[DATA DA REQUISIÇÃO]])>0),0)","v":0},"Rita Santos","alguem@example.com",234678902,"O Principezinho",{"$f":"DATE(YEAR(TODAY()),2,17)","v":"2018-02-17"},{"$f":"DATE(YEAR(TODAY()),2,22)","v":"2018-02-22"},{"$f":"IFERROR(IF(Livros[[#This Row],[DATA DA DEVOLUÇÃO]]=\"\",IF(Livros[[#This Row],[DATA DA REQUISIÇÃO]]<>\"\", TODAY()-Livros[[#This Row],[DATA DA REQUISIÇÃO]],\"\"),Livros[[#This Row],[DATA DA DEVOLUÇÃO]]-Livros[[#This Row],[DATA DA REQUISIÇÃO]]), \"\")","v":5}]
[{"$f":"IFERROR(((Livros[[#This Row],[DATA DA REQUISIÇÃO]]+DiasDeTolerância)<TODAY())*(LEN(Livros[[#This Row],[DATA DA DEVOLUÇÃO]])=0)*(LEN(Livros[[#This Row],[DATA DA REQUISIÇÃO]])>0),0)","v":0},"Samuel Ferreira","alguem@example.com",234678903,"A Fada Oriana",{"$f":"DATE(YEAR(TODAY()),2,17)","v":"2018-02-17"},{"$f":"DATE(YEAR(TODAY()),2,25)","v":"2018-02-25"},{"$f":"IFERROR(IF(Livros[[#This Row],[DATA DA DEVOLUÇÃO]]=\"\",IF(Livros[[#This Row],[DATA DA REQUISIÇÃO]]<>\"\", TODAY()-Livros[[#This Row],[DATA DA REQUISIÇÃO]],\"\"),Livros[[#This Row],[DATA DA DEVOLUÇÃO]]-Livros[[#This Row],[DATA DA REQUISIÇÃO]]), \"\")","v":8}]
[{"$f":"IFERROR(((Livros[[#This Row],[DATA DA REQUISIÇÃO]]+DiasDeTolerância)<TODAY())*(LEN(Livros[[#This Row],[DATA DA DEVOLUÇÃO]])=0)*(LEN(Livros[[#This Row],[DATA DA REQUISIÇÃO]])>0),0)","v":0},"Emília Faria","alguem@example.com",234678904,"Matilda",{"$f":"DATE(YEAR(TODAY()),2,18)","v":"2018-02-18"},{"$f":"DATE(YEAR(TODAY()),2,28)","v":"2018-02-28"},{"$f":"IFERROR(IF(Livros[[#This Row],[DATA DA DEVOLUÇÃO]]=\"\",IF(Livros[[#This Row],[DATA DA REQUISIÇÃO]]<>\"\", TODAY()-Livros[[#This Row],[DATA DA REQUISIÇÃO]],\"\"),Livros[[#This Row],[DATA DA DEVOLUÇÃO]]-Livros[[#This Row],[DATA DA REQUISIÇÃO]]), \"\")","v":10}]
[{"$f":"IFERROR(((Livros[[#This Row],[DATA DA REQUISIÇÃO]]+DiasDeTolerância)<TODAY())*(LEN(Livros[[#This Row],[DATA DA DEVOLUÇÃO]])=0)*(LEN(Livros[[#This Row],[DATA DA REQUISIÇÃO]])>0),0)","v":1},"Mariana Correia","alguem@example.com",234678905,"As Crónicas de Nárnia",{"$f":"DATE(YEAR(TODAY()),1,23)","v":"2018-01-23"},null,{"$f":"IFERROR(IF(Livros[[#This Row],[DATA DA DEVOLUÇÃO]]=\"\",IF(Livros[[#This Row],[DATA DA REQUISIÇÃO]]<>\"\", TODAY()-Livros[[#This Row],[DATA DA REQUISIÇÃO]],\"\"),Livros[[#This Row],[DATA DA DEVOLUÇÃO]]-Livros[[#This Row],[DATA DA REQUISIÇÃO]]), \"\")","v":162}]
[{"$f":"IFERROR(((Livros[[#This Row],[DATA DA REQUISIÇÃO]]+DiasDeTolerância)<TODAY())*(LEN(Livros[[#This Row],[DATA DA DEVOLUÇÃO]])=0)*(LEN(Livros[[#This Row],[DATA DA REQUISIÇÃO]])>0),0)","v":0},"Estrela Macedo","alguem@example.com",234678906,"Alice No País das Maravilhas",{"$f":"TODAY()","v":"2018-07-04"},null,{"$f":"IFERROR(IF(Livros[[#This Row],[DATA DA DEVOLUÇÃO]]=\"\",IF(Livros[[#This Row],[DATA DA REQUISIÇÃO]]<>\"\", TODAY()-Livros[[#This Row],[DATA DA REQUISIÇÃO]],\"\"),Livros[[#This Row],[DATA DA DEVOLUÇÃO]]-Livros[[#This Row],[DATA DA REQUISIÇÃO]]), \"\")","v":0}]